[Event "Titled Tuesday Blitz January 31 Late 2023"]
[White "Oparin, Grigoriy"]
[Black "Caruana, Fabiano"]
[WhiteFideId "24125890"]
[BlackFideId "2020009"]
[WhiteElo "2667"]
[BlackElo "2764"]
[Result "0-1"]
[Round "07"]
[TimeControl "180+2"]
[Date "2023.01.31"]
[WhiteClock "0:00:02"]
[BlackClock "0:00:05"]

1. g3 {[%clk 0:03:00]}  d5 {[%clk 0:02:56]} 2. Bg2 {[%clk 0:03:00]}  e5 {[%clk 0:02:56]} 3. d3 {[%clk 0:02:59]}  c5 {[%clk 0:02:56]} 4. Nf3 {[%clk 0:02:58]}  Nc6 {[%clk 0:02:56]} 5. O-O {[%clk 0:02:58]}  Be7 {[%clk 0:02:55]} 6. Nc3 {[%clk 0:02:52]}  Nf6 {[%clk 0:02:54]} 7. a3 {[%clk 0:02:50]}  h6 {[%clk 0:02:52]} 8. Rb1 {[%clk 0:02:51]}  Be6 {[%clk 0:02:48]} 9. e4 {[%clk 0:02:35]}  d4 {[%clk 0:02:47]} 10. Ne2 {[%clk 0:02:35]}  g5 {[%clk 0:02:36]} 11. b4 {[%clk 0:02:33]}  Qc7 {[%clk 0:02:32]} 12. c3 {[%clk 0:02:23]}  b6 {[%clk 0:02:03]} 13. Bb2 {[%clk 0:02:16]}  O-O {[%clk 0:01:56]} 14. Nd2 {[%clk 0:01:56]}  Rad8 {[%clk 0:01:44]} 15. b5 {[%clk 0:01:49]}  Na5 {[%clk 0:01:42]} 16. Qc2 {[%clk 0:01:42]}  Qd7 {[%clk 0:01:39]} 17. c4 {[%clk 0:01:23]}  Bh3 {[%clk 0:01:23]} 18. f3 {[%clk 0:01:21]}  h5 {[%clk 0:01:17]} 19. Rf2 {[%clk 0:01:21]}  Nh7 {[%clk 0:01:15]} 20. Rbf1 {[%clk 0:01:10]}  Bxg2 {[%clk 0:01:09]} 21. Rxg2 {[%clk 0:01:11]}  Kh8 {[%clk 0:01:07]} 22. Bc1 {[%clk 0:01:08]}  Nb7 {[%clk 0:01:06]} 23. Qd1 {[%clk 0:01:04]}  Nd6 {[%clk 0:01:03]} 24. Kh1 {[%clk 0:01:01]}  g4 {[%clk 0:00:58]} 25. f4 {[%clk 0:00:52]}  f6 {[%clk 0:00:49]} 26. Rgf2 {[%clk 0:00:52]}  Qe6 {[%clk 0:00:45]} 27. Kg1 {[%clk 0:00:47]}  Rg8 {[%clk 0:00:42]} 28. Nb3 {[%clk 0:00:41]}  Rdf8 {[%clk 0:00:39]} 29. a4 {[%clk 0:00:37]}  Rf7 {[%clk 0:00:34]} 30. a5 {[%clk 0:00:36]}  Rfg7 {[%clk 0:00:31]} 31. Bd2 {[%clk 0:00:32]}  Nf8 {[%clk 0:00:27]} 32. Qc2 {[%clk 0:00:28]}  Rh7 {[%clk 0:00:18]} 33. axb6 {[%clk 0:00:27]}  axb6 {[%clk 0:00:19]} 34. Ra1 {[%clk 0:00:27]}  h4 {[%clk 0:00:15]} 35. Ra6 {[%clk 0:00:27]}  hxg3 {[%clk 0:00:14]} 36. Nxg3 {[%clk 0:00:27]}  Bd8 {[%clk 0:00:13]} 37. Qd1 {[%clk 0:00:25]}  Qd7 {[%clk 0:00:13]} 38. Qf1 {[%clk 0:00:21]}  Ng6 {[%clk 0:00:13]} 39. Nc1 {[%clk 0:00:18]}  Nh4 {[%clk 0:00:13]} 40. Nce2 {[%clk 0:00:16]}  Nf3+ {[%clk 0:00:12]} 41. Rxf3 {[%clk 0:00:17]}  gxf3 {[%clk 0:00:13]} 42. Qxf3 {[%clk 0:00:17]}  Qh3 {[%clk 0:00:13]} 43. Qg2 {[%clk 0:00:18]}  Qg4 {[%clk 0:00:13]} 44. Kf2 {[%clk 0:00:15]}  f5 {[%clk 0:00:11]} 45. fxe5 {[%clk 0:00:14]}  fxe4 {[%clk 0:00:12]} 46. exd6 {[%clk 0:00:13]}  e3+ {[%clk 0:00:12]} 47. Bxe3 {[%clk 0:00:13]}  dxe3+ {[%clk 0:00:13]} 48. Kxe3 {[%clk 0:00:12]}  Bg5+ {[%clk 0:00:13]} 49. Kf2 {[%clk 0:00:12]}  Bd2 {[%clk 0:00:13]} 50. Ra1 {[%clk 0:00:03]}  Rf8+ {[%clk 0:00:12]} 51. Kg1 {[%clk 0:00:04]}  Be3+ {[%clk 0:00:12]} 52. Kh1 {[%clk 0:00:04]}  Rhf7 {[%clk 0:00:12]} 53. d7 {[%clk 0:00:03]}  Qxd7 {[%clk 0:00:11]} 54. Ne4 {[%clk 0:00:01]}  Rg7 {[%clk 0:00:09]} 55. N2g3 {[%clk 0:00:01]}  Rh7 {[%clk 0:00:08]} 56. Re1 {[%clk 0:00:01]}  Bd4 {[%clk 0:00:08]} 57. Rf1 {[%clk 0:00:01]}  Rxf1+ {[%clk 0:00:08]} 58. Qxf1 {[%clk 0:00:02]}  Qf7 {[%clk 0:00:07]} 59. Qxf7 {[%clk 0:00:02]}  Rxf7 {[%clk 0:00:08]} 60. Kg2 {[%clk 0:00:02]}  Kg7 {[%clk 0:00:08]} 61. h4 {[%clk 0:00:03]}  Ra7 {[%clk 0:00:07]} 62. Ne2 {[%clk 0:00:03]}  Ra3 {[%clk 0:00:07]} 63. Nxd4 {[%clk 0:00:03]}  cxd4 {[%clk 0:00:08]} 64. Nf2 {[%clk 0:00:04]}  Kg6 {[%clk 0:00:08]} 65. Kf3 {[%clk 0:00:05]}  Kf5 {[%clk 0:00:08]} 66. h5 {[%clk 0:00:05]}  Ra8 {[%clk 0:00:08]} 67. Ne4 {[%clk 0:00:05]}  Rh8 {[%clk 0:00:07]} 68. Ng3+ {[%clk 0:00:05]}  Ke5 {[%clk 0:00:05]} 69. Kg4 {[%clk 0:00:06]}  Rg8+ {[%clk 0:00:05]} 70. Kf3 {[%clk 0:00:06]}  Rf8+ {[%clk 0:00:05]} 71. Kg4 {[%clk 0:00:06]}  Rg8+ {[%clk 0:00:06]} 72. Kf3 {[%clk 0:00:06]}  Rg5 {[%clk 0:00:06]} 73. c5 {[%clk 0:00:02]}  bxc5 {[%clk 0:00:06]} 74. b6 {[%clk 0:00:03]}  Rg7 {[%clk 0:00:06]} 75. h6 {[%clk 0:00:02]}  Rh7 {[%clk 0:00:05]} 0-1


[Site "https://www.chess.com"]

[Event "Titled Tuesday Blitz January 31 Late 2023"]
[White "Martinez Alcantara, Jose Eduardo"]
[Black "Hansen, Eric"]
[WhiteFideId "3805662"]
[BlackFideId "2606771"]
[WhiteElo "2619"]
[BlackElo "2609"]
[Result "0-1"]
[Round "07"]
[TimeControl "180+2"]
[Date "2023.01.31"]
[WhiteClock "0:00:02"]
[BlackClock "0:00:05"]

1. e4 {[%clk 0:02:54]}  e5 {[%clk 0:02:55]} 2. Nf3 {[%clk 0:02:55]}  Nc6 {[%clk 0:02:56]} 3. Nc3 {[%clk 0:02:55]}  Nf6 {[%clk 0:02:53]} 4. h3 {[%clk 0:02:56]}  d6 {[%clk 0:02:51]} 5. Bc4 {[%clk 0:02:55]}  Be7 {[%clk 0:02:49]} 6. d3 {[%clk 0:02:52]}  O-O {[%clk 0:02:49]} 7. O-O {[%clk 0:02:52]}  Na5 {[%clk 0:02:48]} 8. Be3 {[%clk 0:02:37]}  Nxc4 {[%clk 0:02:37]} 9. dxc4 {[%clk 0:02:38]}  Be6 {[%clk 0:02:37]} 10. Qd3 {[%clk 0:02:33]}  c6 {[%clk 0:02:34]} 11. Rfd1 {[%clk 0:02:23]}  Qc7 {[%clk 0:02:32]} 12. Ng5 {[%clk 0:02:19]}  Bc8 {[%clk 0:02:29]} 13. Nf3 {[%clk 0:02:14]}  Be6 {[%clk 0:02:28]} 14. Ng5 {[%clk 0:02:14]}  Bc8 {[%clk 0:02:25]} 15. b3 {[%clk 0:02:14]}  h6 {[%clk 0:02:25]} 16. Nf3 {[%clk 0:02:15]}  Be6 {[%clk 0:02:25]} 17. Qe2 {[%clk 0:02:10]}  Rfd8 {[%clk 0:02:24]} 18. a4 {[%clk 0:02:03]}  Qa5 {[%clk 0:02:22]} 19. Bd2 {[%clk 0:02:02]}  Qc7 {[%clk 0:02:20]} 20. a5 {[%clk 0:01:57]}  b6 {[%clk 0:02:17]} 21. a6 {[%clk 0:01:57]}  Rac8 {[%clk 0:02:12]} 22. Re1 {[%clk 0:01:47]}  Qb8 {[%clk 0:02:08]} 23. Red1 {[%clk 0:01:43]}  Bd7 {[%clk 0:01:58]} 24. Qd3 {[%clk 0:01:30]}  b5 {[%clk 0:01:56]} 25. Be3 {[%clk 0:01:29]}  b4 {[%clk 0:01:46]} 26. Ne2 {[%clk 0:01:29]}  d5 {[%clk 0:01:43]} 27. Ng3 {[%clk 0:01:27]}  d4 {[%clk 0:01:21]} 28. Bd2 {[%clk 0:01:24]}  c5 {[%clk 0:01:21]} 29. Nh4 {[%clk 0:01:21]}  Rc6 {[%clk 0:01:21]} 30. Nhf5 {[%clk 0:01:20]}  Bf8 {[%clk 0:01:22]} 31. Rf1 {[%clk 0:01:20]}  Re6 {[%clk 0:01:16]} 32. f4 {[%clk 0:01:19]}  Bc6 {[%clk 0:01:00]} 33. Rae1 {[%clk 0:01:12]}  Rde8 {[%clk 0:00:59]} 34. fxe5 {[%clk 0:01:06]}  Nd7 {[%clk 0:00:59]} 35. Nh5 {[%clk 0:00:46]}  Nxe5 {[%clk 0:00:59]} 36. Qe2 {[%clk 0:00:42]}  Ng6 {[%clk 0:00:57]} 37. Qf3 {[%clk 0:00:34]}  Qc7 {[%clk 0:00:53]} 38. Nhg3 {[%clk 0:00:31]}  Ba8 {[%clk 0:00:51]} 39. Qg4 {[%clk 0:00:30]}  Rxa6 {[%clk 0:00:48]} 40. Nh5 {[%clk 0:00:30]}  Rae6 {[%clk 0:00:32]} 41. Nhg3 {[%clk 0:00:20]}  Ne5 {[%clk 0:00:28]} 42. Qh4 {[%clk 0:00:20]}  Qd8 {[%clk 0:00:25]} 43. Qf4 {[%clk 0:00:18]}  d3 {[%clk 0:00:21]} 44. c3 {[%clk 0:00:18]}  a5 {[%clk 0:00:20]} 45. Ra1 {[%clk 0:00:18]}  Qd7 {[%clk 0:00:17]} 46. Qe3 {[%clk 0:00:11]}  Ng6 {[%clk 0:00:16]} 47. Rxa5 {[%clk 0:00:11]}  Bxe4 {[%clk 0:00:16]} 48. Nxe4 {[%clk 0:00:12]}  Rxe4 {[%clk 0:00:16]} 49. Qf3 {[%clk 0:00:13]}  Re2 {[%clk 0:00:16]} 50. Rd1 {[%clk 0:00:11]}  R8e5 {[%clk 0:00:11]} 51. Ng3 {[%clk 0:00:11]}  Nh4 {[%clk 0:00:11]} 52. Qf4 {[%clk 0:00:01]}  Rxg2+ {[%clk 0:00:09]} 53. Kf1 {[%clk 0:00:02]}  Qxh3 {[%clk 0:00:09]} 54. Qxh4 {[%clk 0:00:02]}  Qxh4 {[%clk 0:00:04]} 55. Kxg2 {[%clk 0:00:03]}  Qg4 {[%clk 0:00:04]} 56. Rf1 {[%clk 0:00:02]}  Re2+ {[%clk 0:00:04]} 57. Rf2 {[%clk 0:00:03]}  Bd6 {[%clk 0:00:04]} 58. Ra8+ {[%clk 0:00:03]}  Kh7 {[%clk 0:00:04]} 59. Rxe2 {[%clk 0:00:01]}  Qxg3+ {[%clk 0:00:04]} 60. Kf1 {[%clk 0:00:02]}  Qf3+ {[%clk 0:00:05]} 61. Rf2 {[%clk 0:00:02]}  Qh1# {[%clk 0:00:05]} 0-1


[Site "https://www.chess.com"]

[Event "Titled Tuesday Blitz January 31 Late 2023"]
[White "Avila Pavas, Santiago"]
[Black "Babazada, Khazar"]
[WhiteFideId "4437128"]
[BlackFideId "13413554"]
[WhiteElo "2522"]
[BlackElo "2474"]
[Result "0-1"]
[Round "07"]
[TimeControl "180+2"]
[Date "2023.01.31"]
[WhiteClock "0:00:51"]
[BlackClock "0:02:02"]

1. d4 {[%clk 0:03:00]}  g6 {[%clk 0:03:00]} 2. e4 {[%clk 0:03:00]}  Bg7 {[%clk 0:03:00]} 3. Nc3 {[%clk 0:03:01]}  c6 {[%clk 0:03:01]} 4. Be2 {[%clk 0:02:54]}  d5 {[%clk 0:03:01]} 5. e5 {[%clk 0:02:55]}  h5 {[%clk 0:03:01]} 6. h3 {[%clk 0:02:52]}  Nh6 {[%clk 0:02:59]} 7. Nf3 {[%clk 0:02:52]}  Bf5 {[%clk 0:02:58]} 8. Bf4 {[%clk 0:02:51]}  Nd7 {[%clk 0:02:58]} 9. Qd2 {[%clk 0:02:51]}  Nf8 {[%clk 0:02:57]} 10. O-O-O {[%clk 0:02:50]}  Qa5 {[%clk 0:02:57]} 11. Kb1 {[%clk 0:02:41]}  Ne6 {[%clk 0:02:57]} 12. Be3 {[%clk 0:02:41]}  O-O-O {[%clk 0:02:57]} 13. Nh2 {[%clk 0:02:17]}  Bxe5 {[%clk 0:02:49]} 14. Bxh6 {[%clk 0:02:04]}  Bxd4 {[%clk 0:02:45]} 15. Be3 {[%clk 0:02:03]}  Bg7 {[%clk 0:02:13]} 16. g4 {[%clk 0:01:25]}  d4 {[%clk 0:02:13]} 17. gxf5 {[%clk 0:01:25]}  dxc3 {[%clk 0:02:12]} 18. Qc1 {[%clk 0:01:26]}  cxb2 {[%clk 0:02:11]} 19. Rxd8+ {[%clk 0:01:24]}  Rxd8 {[%clk 0:02:12]} 20. Qe1 {[%clk 0:01:20]}  Bc3 {[%clk 0:02:12]} 21. Qf1 {[%clk 0:01:16]}  Nd4 {[%clk 0:02:11]} 22. Bxd4 {[%clk 0:01:15]}  Rxd4 {[%clk 0:02:12]} 23. Bc4 {[%clk 0:00:59]}  Qxf5 {[%clk 0:02:06]} 24. Qe2 {[%clk 0:00:51]}  Rd2 {[%clk 0:02:02]} 25. Bd3 {[%clk 0:00:51]}  Rxe2 {[%clk 0:02:02]} 0-1


[Site "https://www.chess.com"]

[Event "Titled Tuesday Blitz January 31 Late 2023"]
[White "Tari, Aryan"]
[Black "Nakamura, Hikaru"]
[WhiteFideId "1510045"]
[BlackFideId "2016192"]
[WhiteElo "2642"]
[BlackElo "2775"]
[Result "0-1"]
[Round "07"]
[TimeControl "180+2"]
[Date "2023.01.31"]
[WhiteClock "0:00:01"]
[BlackClock "0:00:12"]

1. e4 {[%clk 0:02:53]}  e6 {[%clk 0:02:55]} 2. d4 {[%clk 0:02:53]}  d5 {[%clk 0:02:56]} 3. Nc3 {[%clk 0:02:54]}  Nf6 {[%clk 0:02:56]} 4. e5 {[%clk 0:02:53]}  Nfd7 {[%clk 0:02:55]} 5. f4 {[%clk 0:02:54]}  c5 {[%clk 0:02:55]} 6. Nf3 {[%clk 0:02:54]}  Nc6 {[%clk 0:02:55]} 7. Be3 {[%clk 0:02:54]}  Rb8 {[%clk 0:02:55]} 8. Qd2 {[%clk 0:02:52]}  Qa5 {[%clk 0:02:49]} 9. a3 {[%clk 0:02:44]}  b5 {[%clk 0:02:35]} 10. dxc5 {[%clk 0:02:43]}  b4 {[%clk 0:02:36]} 11. Na2 {[%clk 0:02:28]}  Nxc5 {[%clk 0:02:01]} 12. Nd4 {[%clk 0:01:33]}  Bd7 {[%clk 0:01:30]} 13. Nxc6 {[%clk 0:01:21]}  Bxc6 {[%clk 0:01:30]} 14. Bd3 {[%clk 0:00:31]}  Nxd3+ {[%clk 0:00:44]} 15. cxd3 {[%clk 0:00:32]}  Qa6 {[%clk 0:00:43]} 16. O-O {[%clk 0:00:28]}  bxa3 {[%clk 0:00:43]} 17. bxa3 {[%clk 0:00:29]}  Qa4 {[%clk 0:00:29]} 18. Rfb1 {[%clk 0:00:22]}  Rxb1+ {[%clk 0:00:28]} 19. Rxb1 {[%clk 0:00:22]}  d4 {[%clk 0:00:28]} 20. Rb8+ {[%clk 0:00:16]}  Kd7 {[%clk 0:00:29]} 21. Bf2 {[%clk 0:00:15]}  Qxa3 {[%clk 0:00:27]} 22. f5 {[%clk 0:00:10]}  Bd5 {[%clk 0:00:22]} 23. fxe6+ {[%clk 0:00:08]}  fxe6 {[%clk 0:00:22]} 24. Nc1 {[%clk 0:00:04]}  Kc7 {[%clk 0:00:17]} 25. Re8 {[%clk 0:00:01]}  Qa4 {[%clk 0:00:12]} 0-1


[Site "https://www.chess.com"]

[Event "Titled Tuesday Blitz January 31 Late 2023"]
[White "Jobava, Baadur"]
[Black "Kazakouski, Valery"]
[WhiteFideId "13601520"]
[BlackFideId "13507443"]
[WhiteElo "2578"]
[BlackElo "2539"]
[Result "1-0"]
[Round "07"]
[TimeControl "180+2"]
[Date "2023.01.31"]
[WhiteClock "0:00:06"]
[BlackClock "0:00:07"]

1. b3 {[%clk 0:03:00]}  e5 {[%clk 0:02:56]} 2. Bb2 {[%clk 0:03:01]}  Nc6 {[%clk 0:02:57]} 3. Nf3 {[%clk 0:03:01]}  e4 {[%clk 0:02:47]} 4. Nd4 {[%clk 0:03:01]}  Nf6 {[%clk 0:02:46]} 5. e3 {[%clk 0:03:01]}  d5 {[%clk 0:02:45]} 6. c4 {[%clk 0:03:01]}  dxc4 {[%clk 0:02:44]} 7. Bxc4 {[%clk 0:03:02]}  Ne5 {[%clk 0:02:40]} 8. O-O {[%clk 0:02:59]}  Nxc4 {[%clk 0:02:33]} 9. bxc4 {[%clk 0:03:00]}  c6 {[%clk 0:02:33]} 10. Nc3 {[%clk 0:02:59]}  Bd6 {[%clk 0:02:33]} 11. Qc2 {[%clk 0:02:56]}  Qe7 {[%clk 0:02:33]} 12. f3 {[%clk 0:02:52]}  exf3 {[%clk 0:02:20]} 13. Rxf3 {[%clk 0:02:52]}  O-O {[%clk 0:02:18]} 14. Raf1 {[%clk 0:02:50]}  Ng4 {[%clk 0:02:18]} 15. Rh3 {[%clk 0:02:43]}  g6 {[%clk 0:02:15]} 16. Ne4 {[%clk 0:02:37]}  Be5 {[%clk 0:02:11]} 17. c5 {[%clk 0:02:03]}  f5 {[%clk 0:01:59]} 18. Nd6 {[%clk 0:01:41]}  h5 {[%clk 0:01:48]} 19. Ne2 {[%clk 0:01:17]}  Be6 {[%clk 0:01:31]} 20. Bxe5 {[%clk 0:01:13]}  Nxe5 {[%clk 0:01:31]} 21. Nf4 {[%clk 0:01:14]}  Bf7 {[%clk 0:01:28]} 22. Nxh5 {[%clk 0:00:53]}  gxh5 {[%clk 0:01:22]} 23. Nxf5 {[%clk 0:00:53]}  Qe6 {[%clk 0:01:15]} 24. Rg3+ {[%clk 0:00:45]}  Bg6 {[%clk 0:01:02]} 25. Qe4 {[%clk 0:00:20]}  Kh7 {[%clk 0:00:56]} 26. Rxg6 {[%clk 0:00:18]}  Qxg6 {[%clk 0:00:53]} 27. Qxe5 {[%clk 0:00:18]}  Rae8 {[%clk 0:00:54]} 28. Qf4 {[%clk 0:00:16]}  Rg8 {[%clk 0:00:48]} 29. g3 {[%clk 0:00:14]}  Rgf8 {[%clk 0:00:45]} 30. e4 {[%clk 0:00:13]}  b6 {[%clk 0:00:44]} 31. cxb6 {[%clk 0:00:13]}  axb6 {[%clk 0:00:45]} 32. d4 {[%clk 0:00:13]}  Rf6 {[%clk 0:00:34]} 33. Rf2 {[%clk 0:00:08]}  Rfe6 {[%clk 0:00:23]} 34. e5 {[%clk 0:00:07]}  c5 {[%clk 0:00:22]} 35. Nd6 {[%clk 0:00:06]}  R8e7 {[%clk 0:00:20]} 36. Ne4 {[%clk 0:00:06]}  c4 {[%clk 0:00:07]} 37. Ng5+ {[%clk 0:00:06]} 1-0


[Site "https://www.chess.com"]

[Event "Titled Tuesday Blitz January 31 Late 2023"]
[White "Salem, A.R. Saleh"]
[Black "Yuan, Qingyu"]
[WhiteFideId "9301348"]
[BlackFideId "8609772"]
[WhiteElo "2677"]
[BlackElo "2373"]
[Result "1-0"]
[Round "07"]
[TimeControl "180+2"]
[Date "2023.01.31"]
[WhiteClock "0:01:27"]
[BlackClock "0:00:43"]

1. d4 {[%clk 0:03:00]}  d5 {[%clk 0:03:00]} 2. c4 {[%clk 0:03:01]}  e6 {[%clk 0:03:00]} 3. Nc3 {[%clk 0:03:02]}  Be7 {[%clk 0:03:01]} 4. cxd5 {[%clk 0:03:01]}  exd5 {[%clk 0:03:01]} 5. Bf4 {[%clk 0:03:02]}  c6 {[%clk 0:02:59]} 6. e3 {[%clk 0:03:02]}  Bf5 {[%clk 0:02:54]} 7. g4 {[%clk 0:02:58]}  Be6 {[%clk 0:02:54]} 8. Qb3 {[%clk 0:02:56]}  b5 {[%clk 0:02:46]} 9. Nf3 {[%clk 0:02:51]}  Nd7 {[%clk 0:02:38]} 10. h3 {[%clk 0:02:40]}  Ngf6 {[%clk 0:02:38]} 11. Bd3 {[%clk 0:02:39]}  b4 {[%clk 0:02:31]} 12. Na4 {[%clk 0:02:37]}  Ne4 {[%clk 0:02:32]} 13. Rc1 {[%clk 0:02:34]}  c5 {[%clk 0:02:31]} 14. dxc5 {[%clk 0:02:34]}  Ndxc5 {[%clk 0:02:32]} 15. Nxc5 {[%clk 0:02:30]}  Nxc5 {[%clk 0:02:26]} 16. Bb5+ {[%clk 0:02:28]}  Bd7 {[%clk 0:02:23]} 17. Bxd7+ {[%clk 0:01:59]}  Qxd7 {[%clk 0:02:21]} 18. Qd1 {[%clk 0:01:59]}  O-O {[%clk 0:02:17]} 19. O-O {[%clk 0:01:52]}  Rac8 {[%clk 0:02:15]} 20. Be5 {[%clk 0:01:45]}  Rfd8 {[%clk 0:01:54]} 21. Nd4 {[%clk 0:01:41]}  Bd6 {[%clk 0:01:41]} 22. Bxd6 {[%clk 0:01:39]}  Qxd6 {[%clk 0:01:42]} 23. Nf5 {[%clk 0:01:39]}  Qe5 {[%clk 0:01:36]} 24. Qd4 {[%clk 0:01:39]}  f6 {[%clk 0:00:43]} 25. Rxc5 {[%clk 0:01:28]}  Rxc5 {[%clk 0:00:42]} 26. Qxc5 {[%clk 0:01:29]}  Qe4 {[%clk 0:00:43]} 27. Qc7 {[%clk 0:01:27]} 1-0


[Site "https://www.chess.com"]

[Event "Titled Tuesday Blitz January 31 Late 2023"]
[White "Yanchenko, Roman"]
[Black "Bortnyk, Olexandr"]
[WhiteFideId "4137329"]
[BlackFideId "14120828"]
[WhiteElo "2466"]
[BlackElo "2605"]
[Result "0-1"]
[Round "07"]
[TimeControl "180+2"]
[Date "2023.01.31"]
[WhiteClock "0:00:02"]
[BlackClock "0:00:04"]

1. d4 {[%clk 0:03:00]}  d6 {[%clk 0:02:52]} 2. Nf3 {[%clk 0:03:00]}  Nf6 {[%clk 0:02:52]} 3. c4 {[%clk 0:03:00]}  g6 {[%clk 0:02:51]} 4. Nc3 {[%clk 0:03:00]}  Bf5 {[%clk 0:02:51]} 5. e3 {[%clk 0:02:58]}  Bg7 {[%clk 0:02:51]} 6. b3 {[%clk 0:02:58]}  c5 {[%clk 0:02:50]} 7. Bb2 {[%clk 0:02:58]}  Qa5 {[%clk 0:02:49]} 8. Bd3 {[%clk 0:02:56]}  cxd4 {[%clk 0:02:36]} 9. Nxd4 {[%clk 0:02:51]}  Bxd3 {[%clk 0:02:34]} 10. Qxd3 {[%clk 0:02:52]}  Nc6 {[%clk 0:02:33]} 11. O-O {[%clk 0:02:45]}  O-O {[%clk 0:02:32]} 12. h3 {[%clk 0:02:38]}  Rfe8 {[%clk 0:02:27]} 13. Rad1 {[%clk 0:02:36]}  Rac8 {[%clk 0:02:26]} 14. Qd2 {[%clk 0:02:28]}  Nd7 {[%clk 0:02:23]} 15. Nd5 {[%clk 0:02:23]}  Qxd2 {[%clk 0:02:23]} 16. Rxd2 {[%clk 0:02:24]}  Nxd4 {[%clk 0:02:23]} 17. Bxd4 {[%clk 0:02:22]}  Bxd4 {[%clk 0:02:23]} 18. exd4 {[%clk 0:02:16]}  e6 {[%clk 0:02:22]} 19. Ne3 {[%clk 0:02:15]}  a6 {[%clk 0:02:20]} 20. b4 {[%clk 0:02:07]}  Red8 {[%clk 0:01:55]} 21. c5 {[%clk 0:02:01]}  dxc5 {[%clk 0:01:54]} 22. dxc5 {[%clk 0:01:59]}  Ne5 {[%clk 0:01:54]} 23. Rfd1 {[%clk 0:01:58]}  Rxd2 {[%clk 0:01:54]} 24. Rxd2 {[%clk 0:01:59]}  a5 {[%clk 0:01:55]} 25. a3 {[%clk 0:01:58]}  Kf8 {[%clk 0:01:49]} 26. Ng4 {[%clk 0:01:27]}  Nc4 {[%clk 0:01:42]} 27. Rd7 {[%clk 0:01:26]}  Nxa3 {[%clk 0:01:35]} 28. Ne5 {[%clk 0:01:08]}  axb4 {[%clk 0:01:32]} 29. Rxb7 {[%clk 0:01:04]}  Ke8 {[%clk 0:01:21]} 30. Nxf7 {[%clk 0:00:59]}  Rxc5 {[%clk 0:01:18]} 31. Nd6+ {[%clk 0:01:00]}  Kf8 {[%clk 0:01:16]} 32. Rxb4 {[%clk 0:00:53]}  Ke7 {[%clk 0:01:15]} 33. Ne4 {[%clk 0:00:51]}  Rc7 {[%clk 0:01:15]} 34. Rb3 {[%clk 0:00:44]}  Ra7 {[%clk 0:01:10]} 35. Rc3 {[%clk 0:00:38]}  Nb5 {[%clk 0:01:09]} 36. Re3 {[%clk 0:00:38]}  Nd4 {[%clk 0:01:09]} 37. Ng5 {[%clk 0:00:36]}  h6 {[%clk 0:01:07]} 38. Nf3 {[%clk 0:00:37]}  Nf5 {[%clk 0:01:07]} 39. Rb3 {[%clk 0:00:36]}  Kf6 {[%clk 0:01:06]} 40. g4 {[%clk 0:00:35]}  Nd6 {[%clk 0:01:03]} 41. Re3 {[%clk 0:00:35]}  Ra5 {[%clk 0:00:59]} 42. Kg2 {[%clk 0:00:35]}  e5 {[%clk 0:00:58]} 43. Nd2 {[%clk 0:00:35]}  Ke6 {[%clk 0:00:51]} 44. Ne4 {[%clk 0:00:33]}  Nc4 {[%clk 0:00:47]} 45. Re2 {[%clk 0:00:32]}  h5 {[%clk 0:00:41]} 46. gxh5 {[%clk 0:00:29]}  gxh5 {[%clk 0:00:42]} 47. Kg3 {[%clk 0:00:18]}  Kf5 {[%clk 0:00:40]} 48. Kh4 {[%clk 0:00:16]}  Kf4 {[%clk 0:00:38]} 49. Ng5 {[%clk 0:00:12]}  Nd6 {[%clk 0:00:35]} 50. Kxh5 {[%clk 0:00:11]}  Ra8 {[%clk 0:00:22]} 51. h4 {[%clk 0:00:08]}  Kf5 {[%clk 0:00:22]} 52. Kh6 {[%clk 0:00:06]}  Rh8+ {[%clk 0:00:22]} 53. Kg7 {[%clk 0:00:07]}  Rxh4 {[%clk 0:00:23]} 54. Nf3 {[%clk 0:00:07]}  Rg4+ {[%clk 0:00:19]} 55. Kh6 {[%clk 0:00:07]}  e4 {[%clk 0:00:17]} 56. Nd4+ {[%clk 0:00:07]}  Ke5 {[%clk 0:00:10]} 57. f3 {[%clk 0:00:04]}  Rg1 {[%clk 0:00:03]} 58. Nc6+ {[%clk 0:00:03]}  Kf6 {[%clk 0:00:03]} 59. Kh5 {[%clk 0:00:01]}  exf3 {[%clk 0:00:03]} 60. Rf2 {[%clk 0:00:02]}  Nf5 {[%clk 0:00:04]} 61. Rxf3 {[%clk 0:00:02]}  Rg5# {[%clk 0:00:04]} 0-1


[Site "https://www.chess.com"]

[Event "Titled Tuesday Blitz January 31 Late 2023"]
[White "Karolczuk, Iwo"]
[Black "Bok, Benjamin"]
[WhiteFideId "21816972"]
[BlackFideId "1017063"]
[WhiteElo "2343"]
[BlackElo "2607"]
[Result "0-1"]
[Round "07"]
[TimeControl "180+2"]
[Date "2023.01.31"]
[WhiteClock "0:00:01"]
[BlackClock "0:00:29"]

1. e4 {[%clk 0:03:00]}  c5 {[%clk 0:02:59]} 2. Nc3 {[%clk 0:02:59]}  d6 {[%clk 0:02:59]} 3. d4 {[%clk 0:02:56]}  cxd4 {[%clk 0:03:00]} 4. Qxd4 {[%clk 0:02:56]}  Nc6 {[%clk 0:03:00]} 5. Qd2 {[%clk 0:02:56]}  g6 {[%clk 0:03:00]} 6. b3 {[%clk 0:02:57]}  Bh6 {[%clk 0:03:00]} 7. f4 {[%clk 0:02:57]}  Nf6 {[%clk 0:03:01]} 8. Bb2 {[%clk 0:02:55]}  O-O {[%clk 0:03:01]} 9. O-O-O {[%clk 0:02:55]}  a5 {[%clk 0:03:02]} 10. a4 {[%clk 0:02:44]}  Nb4 {[%clk 0:03:02]} 11. Bc4 {[%clk 0:02:34]}  Bg4 {[%clk 0:02:00]} 12. Re1 {[%clk 0:02:08]}  Rc8 {[%clk 0:01:43]} 13. h3 {[%clk 0:02:06]}  Be6 {[%clk 0:01:40]} 14. Bb5 {[%clk 0:01:49]}  d5 {[%clk 0:01:23]} 15. Nge2 {[%clk 0:00:47]}  Nxe4 {[%clk 0:01:21]} 16. Qe3 {[%clk 0:00:31]}  Nxc3 {[%clk 0:01:21]} 17. Bxc3 {[%clk 0:00:31]}  Rxc3 {[%clk 0:01:15]} 18. Nxc3 {[%clk 0:00:29]}  d4 {[%clk 0:01:15]} 19. Qe5 {[%clk 0:00:24]}  dxc3 {[%clk 0:01:16]} 20. Re2 {[%clk 0:00:21]}  Qd6 {[%clk 0:01:11]} 21. g3 {[%clk 0:00:19]}  Qxe5 {[%clk 0:01:09]} 22. Rxe5 {[%clk 0:00:20]}  Rd8 {[%clk 0:01:09]} 23. h4 {[%clk 0:00:13]}  Bf5 {[%clk 0:00:48]} 24. Rxe7 {[%clk 0:00:12]}  Bxc2 {[%clk 0:00:42]} 25. Bc4 {[%clk 0:00:07]}  Bf5 {[%clk 0:00:37]} 26. Rh2 {[%clk 0:00:05]}  c2 {[%clk 0:00:35]} 27. Rh1 {[%clk 0:00:01]}  Bg7 {[%clk 0:00:30]} 28. Rxf7 {[%clk 0:00:01]}  Na2# {[%clk 0:00:29]} 0-1


[Site "https://www.chess.com"]